bitfinex-derivatives/quotes_SOLF0:USTF0_20250919
["timestamp","ask_amount","ask_price","bid_price","bid_amount"]
[1758324163040,4.52,237.41,237.3,6.67]
[1758324163255,27.86775899,237.43,237.3,6.67]
[1758324163448,4.52,237.41,237.3,6.67]
[1758324163655,4.55010215,237.39,237.3,6.67]
[1758324164355,4.55010215,237.39,237.3,10.4602]
[1758324165055,4.55010215,237.39,237.32,3.79]
[1758324165257,4.55010215,237.39,237.33,6.67]
[1758324167259,0.03010215,237.39,237.35,6.67]
[1758324167659,4.55010215,237.39,237.35,6.67]
[1758324168057,0.03010215,237.39,237.29,58.9623]
[1758324168260,0.03010215,237.39,237.3,6.67]
[1758324168451,0.03010215,237.39,237.34,3.7897]
[1758324168651,0.03010215,237.39,237.35,6.67]
[1758324169851,0.03010215,237.39,237.34,3.7897]
[1758324170067,0.03010215,237.39,237.35,6.67]
[1758324170252,0.03010215,237.39,237.34,3.7897]
[1758324170452,0.03010215,237.39,237.35,6.67]
[1758324170960,0.03010215,237.39,237.34,3.7897]
[1758324171363,0.03010215,237.39,237.35,6.67]
[1758324171662,0.03010215,237.39,237.34,3.7897]
[1758324171862,0.03010215,237.39,237.35,6.67]
[1758324172162,2.90769647,237.38,237.35,6.67]
[1758324172461,0.03010215,237.39,237.35,6.67]
[1758324173267,2.90986211,237.38,237.35,6.67]
[1758324173558,0.03010215,237.39,237.35,6.67]
[1758324173763,2.9097566,237.38,237.34,3.7897]
[1758324173953,0.03010215,237.39,237.34,3.7897]
[1758324174151,2.9097566,237.38,237.35,6.67]
[1758324174363,2.9097566,237.37,237.35,6.67]
[1758324174557,0.03010215,237.39,237.35,6.67]
[1758324174750,2.91211357,237.38,237.34,3.7897]
[1758324174954,2.91211357,237.37,237.35,6.67]
[1758324175153,0.03010215,237.39,237.34,3.7897]
[1758324175352,2.91344839,237.38,237.32,6.67]
[1758324175552,0.03010215,237.39,237.32,6.67]
[1758324175756,2.91352196,237.38,237.32,6.67]
[1758324176058,0.03010215,237.39,237.32,6.67]
[1758324176268,2.91510186,237.38,237.32,6.67]
[1758324176459,2.91510186,237.37,237.32,6.67]
[1758324176658,0.03010215,237.39,237.32,6.67]
[1758324176864,2.91510186,237.38,237.36,3.7893]
[1758324177163,2.91510186,237.37,237.36,10.4593]
[1758324178359,0.03010215,237.39,237.38,3.7891]
[1758324178559,0.03010215,237.39,237.38,10.4591]
[1758324179062,2.95110372,237.39,237.38,10.4591]
[1758324180756,0.03010215,237.39,237.38,10.4591]
[1758324181458,2.95334652,237.39,237.38,10.4591]
[1758324181661,5.86442471,237.49,237.44,3.788]
[1758324181859,1.16643614,237.49,237.44,3.788]
[1758324182256,4.52,237.5,237.46,7.18]
[1758324182459,5.86442471,237.52,237.45,10.9678]
[1758324183062,1.16643614,237.52,237.45,10.9678]
[1758324183476,1.16643614,237.52,237.46,0.02907271]
[1758324183855,9.21798857,237.53,237.46,3.81677271]
[1758324184061,4.52,237.53,237.46,3.81677271]
[1758324189270,4.52,237.5,237.46,0.02907271]
[1758324189570,4.52,237.47,237.46,0.02907271]
[1758324190270,6.10643614,237.47,237.46,0.02907271]
[1758324191670,107.59798857,237.5,237.46,0.02907271]
[1758324191975,4.52,237.49,237.46,0.02907271]
[1758324192468,102.9,237.5,237.46,0.02907271]
[1758324192975,4.52,237.49,237.46,0.02907271]
[1758324193175,102.9,237.5,237.46,0.02907271]
[1758324193369,4.52,237.49,237.46,0.02907271]
[1758324193769,7.42142123,237.48,237.46,0.02907271]
[1758324193971,2.90142123,237.47,237.46,0.02907271]
[1758324194377,7.42142123,237.47,237.46,0.02907271]
[1758324197674,4.49,237.45,237.34,7.18]
[1758324197875,4.49,237.43,237.34,7.18]
[1758324198182,2.90142123,237.42,237.34,7.18]
[1758324198376,2.90142123,237.41,237.34,7.18]
[1758324198576,2.90142123,237.4,237.36,7.18]
[1758324198877,0.02718017,237.4,237.35,1.16643614]
[1758324199081,2.8989446,237.39,237.36,7.18]
[1758324199278,4.51718017,237.4,237.35,8.34643614]
[1758324199476,4.49,237.38,237.35,7.18]
[1758324199881,4.51718017,237.4,237.33,7.18]
[1758324200182,2.89875638,237.39,237.33,7.18]
[1758324200381,2.89875638,237.38,237.32,1.16643614]
[1758324200577,0.02718017,237.4,237.37,3.7892]
[1758324200782,2.89832548,237.39,237.37,3.7892]
[1758324200982,2.89832548,237.38,237.37,3.7892]
[1758324201183,2.89832548,237.38,237.33,1.16643614]
[1758324201379,0.02718017,237.4,237.34,7.18]
[1758324201580,2.8984571,237.39,237.33,1.16643614]
[1758324201779,2.8984571,237.38,237.34,7.18]
[1758324202077,0.02718017,237.4,237.34,7.18]
[1758324202278,2.89868264,237.39,237.34,7.18]
[1758324202478,2.89868264,237.38,237.33,1.16643614]
[1758324202682,0.02718017,237.4,237.33,8.34643614]
[1758324202881,2.89873037,237.39,237.35,3.7894]
[1758324203182,2.89873037,237.38,237.36,7.18]
[1758324203483,4.51718017,237.4,237.36,7.18]
[1758324203782,2.89905344,237.39,237.36,7.18]
[1758324203983,2.89905344,237.38,237.36,7.18]
[1758324204176,4.51718017,237.4,237.36,7.18]
[1758324204374,2.89896765,237.39,237.36,7.18]
[1758324204578,2.89896765,237.38,237.36,7.18]
[1758324204780,4.51718017,237.4,237.36,7.18]
[1758324204980,2.8989385,237.39,237.36,7.18]
[1758324205176,2.8989385,237.38,237.36,7.18]
[1758324205479,2.89887954,237.37,237.33,7.18]
[1758324205686,4.51718017,237.4,237.33,7.18]
[1758324205881,2.89887954,237.39,237.33,7.18]
[1758324206086,2.89887954,237.38,237.32,10.9699]
[1758324206282,2.89891358,237.37,237.32,3.7899]
[1758324206487,4.51718017,237.4,237.32,10.9699]
[1758324206791,2.89893929,237.39,237.32,10.9699]
[1758324206991,2.89893929,237.38,237.32,10.9699]
[1758324207191,2.89893929,237.37,237.32,3.7899]
[1758324207390,4.51718017,237.4,237.33,7.18]
[1758324207588,2.89881193,237.39,237.33,7.18]
[1758324207796,2.89881193,237.38,237.32,10.9699]
[1758324207996,2.89881193,237.37,237.33,7.18]
[1758324208295,4.51718017,237.4,237.33,7.18]
[1758324208496,2.89879925,237.39,237.33,7.18]
[1758324208689,7.38879925,237.38,237.33,3.7897]
[1758324208897,2.89879925,237.37,237.33,10.3697]
[1758324209198,0.02718017,237.4,237.34,6.58]
[1758324209398,2.89883662,237.39,237.34,6.58]
[1758324209588,7.38883662,237.38,237.34,6.58]
[1758324209789,2.89883662,237.37,237.34,6.58]
[1758324209994,4.49,237.38,237.34,6.58]
[1758324210292,2.89883662,237.37,237.34,6.58]
[1758324210497,4.49,237.38,237.34,6.58]
[1758324210696,2.89886869,237.37,237.34,6.58]
[1758324210896,4.49,237.38,237.34,6.58]
[1758324211096,2.89886869,237.37,237.34,6.58]
[1758324211298,4.49,237.38,237.34,6.58]
[1758324211491,2.89886198,237.37,237.34,6.58]
[1758324211692,4.49,237.38,237.34,6.58]
[1758324211892,2.89886203,237.37,237.34,6.58]
[1758324212187,4.49,237.38,237.34,6.58]
[1758324212394,2.89885527,237.37,237.33,3.7897]
[1758324212698,2.89877677,237.36,237.34,6.58]
[1758324212894,4.49,237.39,237.34,6.58]
[1758324213102,7.38877688,237.38,237.34,6.58]
[1758324213288,2.89877688,237.37,237.34,6.58]
[1758324213501,2.89877688,237.36,237.34,6.58]
[1758324213699,0.02718017,237.4,237.34,6.58]
[1758324213901,4.49,237.38,237.34,6.58]
[1758324214096,2.8987407,237.37,237.34,6.58]
[1758324214297,2.8987407,237.36,237.34,6.58]
[1758324214601,4.49,237.38,237.34,6.58]
[1758324214796,2.89854367,237.37,237.34,6.58]
[1758324214997,2.89854367,237.36,237.34,6.58]
[1758324215198,4.49,237.38,237.34,6.58]
[1758324215397,2.89838278,237.37,237.34,6.58]
[1758324215602,2.89838278,237.36,237.34,6.58]
[1758324215803,4.49,237.38,237.34,6.58]
[1758324216102,2.89838278,237.37,237.34,6.58]
[1758324216296,2.89838278,237.36,237.34,6.58]
[1758324216498,4.49,237.38,237.34,6.58]
[1758324216703,7.38813115,237.37,237.34,6.58]
[1758324216903,2.89813115,237.36,237.34,6.58]
[1758324217204,4.49,237.37,237.34,6.58]
[1758324217502,2.89807323,237.36,237.34,6.58]
[1758324217703,4.49,237.37,237.34,6.58]
[1758324217903,2.89807323,237.36,237.34,6.58]
[1758324218105,4.49,237.37,237.34,6.58]
[1758324218306,2.89796001,237.36,237.34,6.58]
[1758324218505,4.49,237.37,237.34,6.58]
[1758324218805,2.89792431,237.36,237.34,6.58]
[1758324219005,4.49,237.37,237.34,6.58]
[1758324219308,2.89780633,237.36,237.34,6.58]
[1758324219506,4.49,237.37,237.34,6.58]
[1758324219805,2.89777898,237.36,237.34,6.58]
[1758324220006,4.49,237.37,237.34,6.58]
[1758324220306,7.38755902,237.36,237.26,6.58]
[1758324220506,4.49,237.34,237.23,6.58]
[1758324220698,2.89705512,237.33,237.23,6.58]
[1758324220901,0.02844416,237.31,237.23,6.58]
[1758324221201,2.89705512,237.3,237.23,6.58]
[1758324222209,2.89705512,237.3,237.26,3.7908]
[1758324222410,2.89705512,237.3,237.27,6.58]
[1758324222713,2.89705512,237.3,237.26,3.7908]
[1758324223910,2.89705512,237.3,237.27,6.58]
[1758324224310,2.89705512,237.3,237.26,3.7908]
[1758324224810,7.38705512,237.3,237.27,6.58]
[1758324225007,2.89705512,237.29,237.27,6.58]
[1758324225207,2.89705512,237.29,237.25,6.58]
[1758324225411,0.02844416,237.31,237.25,6.58]
[1758324225611,2.96185859,237.3,237.24,3.7913]
[1758324225910,2.96185859,237.29,237.26,6.58]
[1758324226105,0.02844416,237.31,237.25,3.791]
[1758324226407,2.96185245,237.3,237.25,3.791]
[1758324226610,0.02844416,237.31,237.25,3.791]
[1758324226808,2.96115283,237.3,237.26,6.58]
[1758324227007,2.96115283,237.29,237.25,3.791]
[1758324227309,0.02844416,237.31,237.26,6.58]
[1758324227608,2.96077278,237.3,237.26,6.58]
[1758324227809,4.51844416,237.31,237.25,3.791]
[1758324228009,2.96077278,237.3,237.26,6.58]
[1758324228210,4.51844416,237.31,237.25,3.791]
[1758324228511,2.96060076,237.3,237.25,3.791]
[1758324228710,4.51844416,237.31,237.26,3.7909]
[1758324229003,2.96060076,237.3,237.27,6.58]
[1758324229202,4.51844416,237.31,237.27,6.58]
[1758324229406,2.96059782,237.3,237.26,3.7909]
[1758324229609,7.45011228,237.29,237.23,3.7913]
[1758324229912,4.49,237.27,237.23,10.3713]
[1758324230107,4.49,237.27,237.24,6.58]
[1758324230811,4.49,237.27,237.24,10.3712]
[1758324231109,0.02844416,237.31,237.24,3.7912]
[1758324231306,7.44999711,237.3,237.21,6.58]
[1758324231508,2.95999711,237.29,237.21,6.58]
[1758324231718,2.95999711,237.28,237.21,6.58]
[1758324232013,0.02844416,237.31,237.21,6.58]
[1758324232215,2.95997398,237.3,237.21,6.58]
[1758324232416,2.95997398,237.29,237.21,6.58]
[1758324232711,2.95997398,237.28,237.21,6.58]
[1758324232912,0.02844416,237.31,237.25,3.791]
[1758324233113,7.45030118,237.3,237.26,6.58]
[1758324233310,2.96030118,237.29,237.26,6.58]
[1758324233513,2.96030118,237.28,237.26,6.58]
[1758324233716,4.49,237.3,237.26,6.58]
[1758324233907,2.96069825,237.29,237.26,6.58]
[1758324234205,2.96069825,237.28,237.26,6.58]
[1758324234514,4.49,237.3,237.27,10.3708]
[1758324234809,2.96094516,237.29,237.27,10.3708]
[1758324235015,4.51844416,237.31,237.27,10.3708]
[1758324235321,2.96102615,237.3,237.27,10.3708]
[1758324235506,2.96102615,237.29,237.28,6.58]
[1758324236109,2.84521549,237.29,237.28,6.58]
[1758324236306,0.02844416,237.31,237.3,6.58]
[1758324238903,4.49,237.4,237.31,6.69]
[1758324239807,4.49,237.4,237.35,3.7895]
[1758324240203,4.49,237.4,237.36,6.79]
[1758324240416,5.43140761,237.43,237.37,3.7892]
[1758324241310,0.73341904,237.43,237.4,6.79]
[1758324241510,9.18798857,237.48,237.38,6.79]
[1758324242019,9.18798857,237.48,237.41,0.02760553]
[1758324242909,9.18798857,237.48,237.41,3.81620553]
[1758324243109,4.49,237.48,237.41,3.81620553]
[1758324244619,4.49,237.48,237.44,6.79]
[1758324245607,4.49,237.48,237.43,3.7882]
[1758324245809,0.7332645,237.49,237.43,10.5782]
[1758324246409,4.49,237.51,237.46,6.79]
[1758324246614,4.49,237.51,237.45,10.5779]
[1758324246911,4.49,237.51,237.47,3.7876]
[1758324247110,0.73310231,237.54,237.47,3.7876]
[1758324247310,0.73310231,237.54,237.47,3.81964569]
[1758324248220,2.94565196,237.53,237.5,6.79]
[1758324248411,2.94565196,237.52,237.5,6.79]
[1758324248719,2.94565196,237.51,237.49,10.5773]
[1758324249015,2.94565196,237.5,237.49,10.5773]
[1758324251417,2.94565196,237.5,237.49,6.79]
[1758324251614,2.94565196,237.5,237.47,6.82204569]
[1758324251818,2.94565196,237.49,237.47,6.82204569]
[1758324252013,4.49,237.53,237.47,6.82204569]
[1758324252218,4.49,237.51,237.47,0.03204569]
[1758324252414,2.94103678,237.5,237.47,0.03204569]
[1758324252721,4.49,237.48,237.47,0.03204569]
[1758324252918,7.43103678,237.48,237.47,0.03204569]
[1758324254415,4.49,237.47,237.39,3.7888]
[1758324254722,2.94103678,237.46,237.36,6.79]
[1758324255022,41.34,237.47,237.36,6.79]
[1758324255023,4.49,237.44,237.36,6.79]
[1758324255320,2.94103678,237.43,237.36,6.79]
[1758324255519,2.94103678,237.42,237.36,6.79]
[1758324255720,7.43103678,237.41,237.36,6.79]
[1758324255920,2.94103678,237.4,237.36,10.5794]
[1758324256217,4.51973752,237.42,237.36,10.5794]
[1758324256423,2.92464304,237.41,237.36,10.5794]
[1758324256623,7.41464304,237.4,237.36,10.5794]
[1758324256821,4.49,237.4,237.36,10.5794]
[1758324257117,2.92482178,237.39,237.33,3.7897]
[1758324257325,4.49,237.41,237.33,6.79]
[1758324257513,2.92477723,237.4,237.33,6.79]
[1758324257718,2.92477723,237.39,237.35,3.7895]
[1758324257922,4.49,237.41,237.35,3.7895]
[1758324258122,2.92487278,237.4,237.35,3.7895]
[1758324258320,2.92487278,237.39,237.35,3.7895]
[1758324258522,4.49,237.41,237.35,10.5795]
[1758324258722,2.92496104,237.4,237.35,3.7895]
[1758324258919,4.49,237.41,237.35,10.5795]
[1758324259124,2.92495614,237.4,237.35,10.5795]
[1758324259328,4.49,237.41,237.35,10.5795]
[1758324259525,2.92484938,237.4,237.35,3.7895]
[1758324259724,4.49,237.41,237.35,10.5795]
[1758324259919,2.92484991,237.4,237.36,6.79]
[1758324260224,2.92484991,237.39,237.36,6.79]
[1758324260420,4.49,237.41,237.35,3.7895]
[1758324260625,2.92477761,237.4,237.35,3.7895]
[1758324260826,2.92477761,237.39,237.35,3.7895]
[1758324261028,4.49,237.41,237.35,10.5795]
[1758324261327,7.41477739,237.4,237.36,6.79]
[1758324261526,2.92477739,237.39,237.36,6.79]
[1758324262821,2.92477739,237.39,237.33,6.79]
[1758324263524,4.51971035,237.38,237.34,10.5797]
[1758324263723,0.02971035,237.38,237.32,6.79]
[1758324264428,0.02971035,237.38,237.36,6.79]
[1758324270031,0.02971035,237.38,237.36,7.23]
[1758324270231,0.02971035,237.38,237.35,3.7895]
[1758324270432,0.02971035,237.38,237.36,7.23]
[1758324270637,0.02971035,237.38,237.35,3.7895]
[1758324271027,0.02971035,237.38,237.36,7.23]
[1758324271536,2.92653551,237.37,237.32,3.79]
[1758324271835,2.92656832,237.36,237.32,3.79]
[1758324272030,0.02971035,237.38,237.32,3.79]
[1758324272232,2.92656666,237.37,237.33,7.23]
[1758324272437,2.92656666,237.36,237.32,3.79]
[1758324272634,0.02971035,237.38,237.33,3.7897]
[1758324272834,2.92696627,237.37,237.34,7.23]
[1758324273031,2.92696627,237.36,237.29,60.78726796]
[1758324273234,0.02971035,237.38,237.3,7.23]
[1758324273434,2.9273228,237.37,237.3,7.23]
[1758324273738,0.02971035,237.38,237.3,7.23]
[1758324273940,2.92756604,237.37,237.3,7.23]
[1758324274137,0.02971035,237.38,237.31,7.23]
[1758324276338,2.92933872,237.37,237.33,3.7899]
[1758324276540,0.02971035,237.38,237.33,3.7899]
[1758324276736,2.92919062,237.37,237.33,3.7899]
[1758324277035,4.51971035,237.38,237.33,3.7899]
[1758324277236,2.92903597,237.37,237.34,7.23]
[1758324277435,4.51971035,237.38,237.33,3.7899]
[1758324277436,2.92903597,237.36,237.33,3.7899]
[1758324277635,2.92903597,237.35,237.34,7.23]
[1758324277836,2.92903597,237.37,237.34,7.23]
[1758324278037,2.92903597,237.37,237.33,3.7899]
[1758324278238,2.92903597,237.37,237.34,7.23]
[1758324278437,2.92903597,237.37,237.33,3.7899]
[1758324278638,2.92903597,237.37,237.34,7.23]
[1758324278841,2.92903597,237.37,237.33,3.7899]
[1758324279541,2.92903597,237.37,237.34,7.23]
[1758324279944,2.92903597,237.37,237.33,3.7899]
[1758324280841,2.92903597,237.37,237.34,7.23]
[1758324281041,2.92903597,237.37,237.33,3.7899]
[1758324281238,2.92903597,237.37,237.34,7.23]
[1758324281540,2.92903597,237.37,237.33,3.7899]
[1758324282037,2.92903597,237.37,237.34,7.23]
[1758324282238,2.92903597,237.37,237.33,3.7899]
[1758324282644,2.92903597,237.37,237.34,7.23]
[1758324283144,2.92903597,237.37,237.31,7.23]
[1758324283944,2.92903597,237.37,237.33,7.23]
[1758324284444,2.92903597,237.37,237.32,3.79]
[1758324284640,2.92903597,237.37,237.33,7.23]
[1758324284945,2.92903597,237.37,237.32,3.79]
[1758324285254,2.92903597,237.37,237.33,7.23]
[1758324285439,2.92903597,237.37,237.32,3.79]
[1758324285641,2.92903597,237.37,237.33,7.23]
[1758324285840,2.92903597,237.37,237.32,3.79]
[1758324286040,2.92903597,237.37,237.33,7.23]
[1758324286748,7.41903597,237.37,237.3,7.23]
[1758324287046,2.92903597,237.36,237.3,7.23]
[1758324287945,2.92903597,237.36,237.3,11.0202]
[1758324289744,0.02971035,237.38,237.33,7.23]
[1758324290249,4.49,237.42,237.33,7.23]
[1758324290447,0.02752988,237.38,237.32,3.79]
[1758324290849,0.02752988,237.38,237.34,7.23]
[1758324291049,0.02752988,237.38,237.29,7.23]
[1758324291946,0.02752988,237.38,237.35,7.23]
[1758324292151,0.02752988,237.38,237.34,3.7896]
[1758324292550,0.02752988,237.38,237.35,7.23]
[1758324293351,4.51752988,237.38,237.35,7.23]
[1758324294648,0.02752988,237.38,237.36,3.7894]
[1758324294847,0.02752988,237.38,237.37,7.23]
[1758324300053,0.02752988,237.38,237.36,3.7894]
[1758324300556,0.02752988,237.38,237.36,10.9594]
[1758324300859,0.02752988,237.38,237.37,7.17]
[1758324301461,0.02752988,237.38,237.33,10.9597]
[1758324301661,0.02752988,237.38,237.33,3.7897]
[1758324301962,2.90772717,237.37,237.3,1.16642771]
[1758324302156,2.90772717,237.36,237.31,7.17]
[1758324302356,2.90772717,237.35,237.34,3.7896]
[1758324302562,2.90772717,237.35,237.34,10.9596]
[1758324303658,0.02752988,237.38,237.34,3.7896]
[1758324304259,0.02752988,237.38,237.35,7.17]
[1758324304665,0.02752988,237.38,237.34,3.7896]
[1758324305358,4.51752988,237.38,237.32,7.17]
[1758324306164,0.02752988,237.38,237.32,7.17]
[1758324306665,0.02752988,237.38,237.34,3.7897]
[1758324306866,0.02752988,237.38,237.29,58.963]
[1758324307065,0.02752988,237.38,237.3,7.17]
[1758324307763,0.02752988,237.38,237.3,8.33642771]
[1758324308065,0.02752988,237.38,237.36,7.17]
[1758324308264,0.02752988,237.38,237.35,3.7894]
[1758324308465,0.02752988,237.38,237.36,7.17]
[1758324310066,4.51752988,237.38,237.33,10.9599]
[1758324310267,4.51752988,237.38,237.34,7.17]
[1758324310463,4.51752988,237.38,237.33,3.7899]
[1758324310967,4.51752988,237.38,237.34,7.17]
[1758324311365,4.51752988,237.38,237.33,3.7899]
[1758324311669,4.51752988,237.38,237.34,7.17]
[1758324311870,0.02752988,237.38,237.34,7.17]
[1758324312167,4.51752988,237.38,237.3,10.9602]
[1758324312371,4.51752988,237.38,237.31,7.17]
[1758324313674,4.51752988,237.38,237.32,3.79]
[1758324321774,4.51752988,237.38,237.31,58.9575]
[1758324321775,0.02752988,237.38,237.31,58.9575]
[1758324321982,0.02752988,237.38,237.33,7.17]
[1758324322177,0.02752988,237.38,237.35,7.17]
[1758324323580,0.02752988,237.38,237.37,7.17]
[1758324368217,4.51,237.37,237.34,3.7897]
[1758324368416,0.02752988,237.38,237.35,3.72246266]
[1758324368617,4.51,237.37,237.36,3.72246266]
[1758324369315,0.02752988,237.38,237.34,3.7897]
[1758324369522,4.51,237.37,237.34,3.7897]
[1758324369722,0.02752988,237.38,237.34,3.7897]
[1758324369925,4.51,237.37,237.34,3.7897]
[1758324370220,4.51,237.37,237.33,6.97]
[1758324370417,0.02752988,237.38,237.33,6.97]
[1758324370809,4.51,237.37,237.33,6.97]
[1758324371515,4.51,237.37,237.3,6.97]
[1758324372922,4.51,237.37,237.34,6.97]
[1758324375224,4.51,237.37,237.33,3.7897]
[1758324375726,4.51,237.37,237.34,6.97]
[1758324376018,0.02752988,237.38,237.33,3.7897]
[1758324376614,0.02752988,237.38,237.34,6.97]
[1758324376823,4.53752988,237.38,237.33,3.7897]
[1758324377423,4.53752988,237.38,237.34,6.97]
[1758324377927,4.53752988,237.38,237.33,3.7897]
[1758324378321,4.53752988,237.38,237.34,6.97]
[1758324379220,4.53752988,237.38,237.33,3.7897]
[1758324379418,4.53752988,237.38,237.34,6.97]
[1758324379618,4.53752988,237.38,237.33,3.7897]
[1758324380329,4.53752988,237.38,237.34,6.97]
[1758324380529,4.53752988,237.38,237.33,3.7897]
[1758324380728,4.53752988,237.38,237.34,6.97]
[1758324381130,4.53752988,237.38,237.33,3.7897]
[1758324381326,4.53752988,237.38,237.34,6.97]
[1758324381635,4.53752988,237.38,237.33,3.7897]
[1758324381829,4.53752988,237.38,237.34,6.97]
[1758324382128,4.53752988,237.38,237.33,3.7897]
[1758324382531,4.53752988,237.38,237.34,6.97]
[1758324383031,4.53752988,237.38,237.33,3.7897]
[1758324383225,4.51,237.37,237.25,6.97]
[1758324383926,2.88352744,237.36,237.25,6.97]
[1758324384125,2.88352744,237.35,237.25,6.97]
[1758324384431,2.88352744,237.34,237.25,6.97]
[1758324384632,0.02874396,237.32,237.25,6.97]
[1758324384832,2.88352744,237.31,237.27,3.7907]
[1758324385032,2.88352744,237.3,237.27,3.7907]
[1758324385335,2.88352744,237.29,237.28,6.97]
[1758324385927,0.02874396,237.32,237.31,10.7602]
[1758324386636,2.91202787,237.32,237.31,10.7602]
[1758324388841,2.91202787,237.32,237.31,6.97]
[1758324403449,2.91202787,237.32,237.3,10.7102]
[1758324403651,2.88328391,237.31,237.3,10.7102]
[1758324406845,7.37328391,237.31,237.25,6.92]
[1758324407048,2.88328391,237.3,237.21,6.92]
[1758324407244,7.37328391,237.29,237.23,3.7915]
[1758324407449,7.37328391,237.28,237.24,6.92]
[1758324407647,2.88328391,237.27,237.24,6.92]
[1758324408352,2.88328391,237.27,237.23,3.7915]
[1758324408552,2.88328391,237.27,237.24,6.92]
[1758324408754,2.88328391,237.27,237.23,3.7915]
[1758324409151,2.88328391,237.27,237.24,6.92]
[1758324409350,7.37328391,237.27,237.24,6.92]
[1758324409550,2.88328391,237.26,237.24,6.92]
[1758324409946,2.88328391,237.26,237.21,6.92]
[1758324410256,2.88328391,237.25,237.21,6.92]
[1758324410452,4.49,237.33,237.26,6.92]
[1758324410654,2.88545978,237.32,237.26,6.92]
[1758324410852,2.88545978,237.31,237.26,6.92]
[1758324411051,2.88545978,237.3,237.25,3.7911]
[1758324411245,2.88545978,237.29,237.25,3.7911]
[1758324411447,0.02726544,237.32,237.25,3.7911]
[1758324411448,2.88545978,237.28,237.25,3.7911]
[1758324411653,2.88545978,237.27,237.26,6.92]
[1758324411951,2.88545978,237.31,237.25,3.7911]
[1758324412147,7.37545978,237.3,237.26,6.92]
[1758324412353,4.49,237.28,237.26,6.92]
[1758324412653,2.88545978,237.27,237.23,6.92]
[1758324412853,2.88545978,237.27,237.22,3.7915]
[1758324413153,2.88545978,237.27,237.24,6.92]
[1758324413348,2.88545978,237.27,237.23,3.7913]
[1758324413554,2.88545978,237.27,237.2,102.8]
[1758324413555,2.91553168,237.27,237.21,6.92]
[1758324413854,0.0300719,237.27,237.21,6.92]
[1758324414054,2.88505584,237.26,237.21,6.92]
[1758324414254,2.88505584,237.25,237.21,6.92]
[1758324414453,0.0300719,237.27,237.21,6.92]
[1758324414656,2.88459004,237.26,237.21,6.92]
[1758324414853,2.88459004,237.25,237.24,10.7112]
[1758324415154,0.0300719,237.27,237.25,6.92]
[1758324415354,2.88447235,237.26,237.25,6.92]
[1758324415960,0.0300719,237.27,237.26,10.711]
[1758324417250,0.0300719,237.27,237.26,113.531]
[1758324421355,0.0300719,237.27,237.26,113.511]
[1758324424961,0.0300719,237.27,237.26,102.8]
[1758324426962,0.0300719,237.27,237.26,109.57]
[1758324440269,0.0300719,237.27,237.26,6.77]
[1758324440472,0.0300719,237.27,237.26,109.55]
[1758324441671,0.0300719,237.27,237.26,6.77]
[1758324441873,0.0300719,237.27,237.26,109.55]
[1758324443567,0.0300719,237.27,237.26,6.77]
[1758324443867,0.0300719,237.27,237.26,109.55]
[1758324444072,2.94838836,237.27,237.26,109.55]
[1758324444274,2.94838836,237.27,237.26,6.77]
[1758324444473,7.43838836,237.27,237.26,102.78]
[1758324444879,7.43838836,237.27,237.24,6.77]
[1758324445072,2.91831646,237.26,237.25,102.76]
[1758324446480,2.91831646,237.26,237.25,109.53]
[1758324455789,2.91831646,237.26,237.25,6.77]
[1758324455990,2.91831646,237.26,237.25,109.53]
[1758324471697,0.0300719,237.27,237.25,102.76]
[1758324471898,2.91865892,237.26,237.25,109.36]
[1758324480815,2.91865892,237.26,237.25,6.6]
[1758324481015,2.91865892,237.26,237.25,109.32]